bitfinex-derivatives/quotes_BTCF0:USTF0_20241021
["timestamp","ask_amount","ask_price","bid_price","bid_amount"]
[1729520500152,0.3608,67435.0,67425.0,0.02351604]
[1729520500448,0.434971,67435.0,67434.0,0.074172]
[1729520500848,0.3608,67435.0,67434.0,0.074172]
[1729520501253,0.1634,67443.0,67442.0,0.074163]
[1729520501657,0.237562,67443.0,67442.0,0.074163]
[1729520502357,0.237562,67443.0,67437.0,0.074168]
[1729520502358,0.074171,67438.0,67437.0,0.074168]
[1729520502562,0.434971,67438.0,67437.0,0.074168]
[1729520504660,0.435971,67438.0,67437.0,0.088168]
[1729520504848,0.3618,67438.0,67437.0,0.102168]
[1729520505849,0.001,67438.0,67437.0,0.102168]
[1729520506054,0.3608,67444.0,67437.0,0.102168]
[1729520506055,0.3608,67444.0,67443.0,0.074162]
[1729520507167,0.074156,67449.0,67448.0,0.074154]
[1729520507664,0.074156,67449.0,67443.0,0.083162]
[1729520507665,0.3608,67451.0,67450.0,0.074154]
[1729520509067,0.3748,67451.0,67450.0,0.075154]
[1729520509970,0.3868,67451.0,67450.0,0.076154]
[1729520510570,0.026,67451.0,67450.0,0.076154]
[1729520510765,0.015,67451.0,67450.0,0.31157358]
[1729520511273,0.002,67451.0,67450.0,0.32157358]
[1729520511669,0.3608,67465.0,67451.0,0.44476]
[1729520511863,0.3608,67482.0,67459.0,0.3608]
[1729520512058,0.074133,67470.0,67469.0,0.074132]
[1729520512262,0.434928,67474.0,67464.0,0.074139]
[1729520512474,0.434928,67474.0,67473.0,0.074129]
[1729520512855,0.3608,67474.0,67473.0,0.074129]
[1729520513060,0.3608,67474.0,67460.0,0.1755]
[1729520513258,0.074134,67469.0,67468.0,0.074134]
[1729520514379,0.074134,67469.0,67460.0,0.1755]
[1729520514380,0.07414,67465.0,67464.0,0.074139]
[1729520514578,0.074143,67460.0,67459.0,0.001]
[1729520514877,0.434943,67460.0,67459.0,0.075145]
[1729520515178,0.434943,67460.0,67459.0,0.001]
[1729520515359,0.074153,67454.0,67453.0,0.07415]
[1729520515563,0.434953,67454.0,67453.0,0.07415]
[1729520516573,0.001,67465.0,67454.0,0.44472]
[1729520516763,0.001,67465.0,67453.0,1.25692329]
[1729520516764,0.02554557,67484.0,67464.0,0.7216]
[1729520516961,0.074125,67477.0,67476.0,0.3608]
[1729520517162,0.02554557,67484.0,67471.0,0.3608]
[1729520517163,0.07413,67472.0,67471.0,0.3608]
[1729520517376,0.074134,67469.0,67467.0,0.074136]
[1729520517679,0.1749,67468.0,67467.0,0.074136]
[1729520517971,0.074141,67462.0,67461.0,0.074142]
[1729520518171,0.07414,67463.0,67460.0,0.3608]
[1729520518371,0.07414,67463.0,67461.0,0.074141]
[1729520518572,0.07414,67463.0,67460.0,0.3608]
[1729520518573,0.07414,67463.0,67462.0,0.074141]
[1729520519877,0.07414,67463.0,67462.0,0.102141]
[1729520519878,0.07614,67463.0,67462.0,0.102141]
[1729520520371,0.002,67463.0,67462.0,0.102141]
[1729520521177,0.07614,67463.0,67462.0,0.102141]
[1729520521482,0.07614,67463.0,67462.0,0.028]
[1729520521776,0.67614,67463.0,67447.0,0.074157]
[1729520522083,0.7216,67455.0,67434.0,0.3608]
[1729520522280,0.78184,67462.0,67427.0,0.3608]
[1729520522281,0.3608,67441.0,67427.0,0.3608]
[1729520522466,0.074171,67435.0,67434.0,0.3608]
[1729520522663,0.074171,67435.0,67434.0,0.434972]
[1729520523317,0.074171,67435.0,67434.0,0.448972]
[1729520524174,0.074171,67435.0,67434.0,0.088172]
[1729520524765,0.171,67437.0,67436.0,0.07417]
[1729520524968,0.17936,67441.0,67439.0,0.074167]
[1729520524969,0.240366,67440.0,67439.0,0.074167]
[1729520525177,0.074172,67437.0,67436.0,0.074168]
[1729520525370,0.074171,67435.0,67434.0,0.003]
[1729520525569,0.074171,67435.0,67434.0,0.077172]
[1729520525866,0.074171,67435.0,67434.0,0.074172]
[1729520526571,0.002,67437.0,67436.0,0.07417]
[1729520526774,0.002,67437.0,67436.0,0.43497]
[1729520526775,0.001,67437.0,67436.0,0.43497]
[1729520527871,0.075169,67437.0,67436.0,0.43497]
[1729520528067,0.074169,67437.0,67436.0,0.43497]
[1729520528467,0.075169,67437.0,67436.0,0.43797]
[1729520528875,0.075169,67437.0,67436.0,0.43897]
[1729520528876,0.076169,67437.0,67436.0,0.43897]
[1729520529772,0.076169,67437.0,67436.0,0.3648]
[1729520530365,0.076169,67437.0,67436.0,0.43897]
[1729520534570,0.076169,67437.0,67436.0,0.3648]
[1729520534889,0.076169,67437.0,67436.0,0.43897]
[1729520535185,0.076169,67437.0,67436.0,0.3648]
[1729520535381,0.076169,67437.0,67436.0,0.43897]
[1729520535779,0.076169,67437.0,67436.0,0.79977]
[1729520535986,0.245161,67445.0,67436.0,0.79977]
[1729520535987,0.0008,67475.0,67436.0,0.94837273]
[1729520536171,0.02296825,67452.0,67450.0,0.074154]
[1729520536376,0.07415,67454.0,67450.0,0.074154]
[1729520536579,0.07637788,67451.0,67450.0,0.074154]
[1729520536983,0.074153,67451.0,67450.0,0.074154]
[1729520537283,0.02299152,67456.0,67449.0,0.3608]
[1729520537284,0.074154,67450.0,67449.0,0.3608]
[1729520537484,0.074161,67444.0,67443.0,0.434962]
[1729520537687,0.011,67451.0,67443.0,0.3608]
[1729520537901,0.011,67451.0,67449.0,0.434956]
[1729520538075,0.074154,67450.0,67449.0,0.434956]
[1729520538475,0.088154,67450.0,67449.0,0.434956]
[1729520539980,0.088154,67450.0,67449.0,0.437956]
[1729520539981,0.015,67450.0,67449.0,0.437956]
[1729520540490,0.002,67450.0,67449.0,0.441956]
[1729520541186,0.001,67450.0,67449.0,0.437956]
[1729520541387,0.076154,67450.0,67449.0,0.441956]
[1729520541592,0.075154,67450.0,67449.0,0.3648]
[1729520541889,0.074169,67437.0,67434.0,0.3608]
[1729520542071,0.074169,67437.0,67436.0,0.07639433]
[1729520542579,0.074169,67437.0,67436.0,0.00222433]
[1729520542781,0.074164,67442.0,67434.0,0.3608]
[1729520542985,0.074164,67442.0,67417.0,0.00756184]
[1729520542986,0.074176,67430.0,67429.0,0.434977]
[1729520545181,0.1688,67441.0,67429.0,0.434977]
[1729520545383,0.075176,67430.0,67429.0,0.434978]
[1729520546187,0.075176,67430.0,67429.0,0.3608]
[1729520546380,0.074176,67430.0,67429.0,0.3608]
[1729520548188,0.074176,67430.0,67429.0,0.3618]
[1729520548189,0.075176,67430.0,67429.0,0.3618]
[1729520548892,0.076176,67430.0,67429.0,0.435978]
[1729520550986,0.002,67430.0,67429.0,0.435978]
[1729520552478,0.002,67430.0,67429.0,0.65868436]
[1729520552679,0.00222497,67444.0,67443.0,0.074162]
[1729520552887,0.00222497,67444.0,67443.0,0.434962]
[1729520554304,0.074143,67461.0,67444.0,0.074161]
[1729520554485,0.00088,67463.0,67460.0,0.3608]
[1729520554684,0.02545608,67465.0,67462.0,0.074141]
[1729520554889,0.02545608,67465.0,67464.0,0.074139]
[1729520555086,0.00222456,67465.0,67464.0,0.074139]
[1729520555286,0.00076,67475.0,67464.0,0.29688835]
[1729520555495,0.074927,67476.0,67474.0,0.3608]
[1729520555703,0.0008,67476.0,67474.0,0.3608]
[1729520556003,0.074123,67479.0,67475.0,0.074126]
[1729520556197,0.074127,67475.0,67474.0,0.3608]
[1729520556406,0.18434313,67481.0,67474.0,0.434927]
[1729520556407,0.074124,67478.0,67474.0,0.434927]
[1729520556595,0.014,67476.0,67475.0,0.074127]
[1729520556904,0.028,67476.0,67475.0,0.074127]
[1729520557390,0.3608,67499.0,67475.0,0.31995057]
[1729520557391,0.074113,67488.0,67475.0,0.31995057]
[1729520557593,0.02279188,67490.0,67487.0,0.3608]
[1729520557901,0.1618,67492.0,67491.0,0.074109]
[1729520557902,0.235909,67492.0,67491.0,0.074109]
[1729520558097,0.7042,67499.0,67487.0,0.3608]
[1729520558098,0.5266,67499.0,67487.0,0.3608]
[1729520558307,0.1658,67499.0,67494.0,0.434906]
[1729520558503,0.074099,67501.0,67494.0,0.434906]
[1729520558692,0.1618,67503.0,67494.0,0.434906]
[1729520559210,0.0741,67500.0,67494.0,0.434906]
[1729520560003,0.00322366,67495.0,67494.0,0.444906]
[1729520561592,0.1585,67514.0,67494.0,0.59163767]
[1729520561796,0.1585,67514.0,67504.0,0.3608]
[1729520561797,0.074094,67506.0,67504.0,0.3608]
[1729520562107,0.074094,67506.0,67504.0,0.434894]
[1729520562601,0.074094,67506.0,67505.0,0.074094]
[1729520562790,0.1585,67514.0,67504.0,0.3608]
[1729520562991,0.1585,67514.0,67513.0,0.074085]
[1729520563389,0.3166,67527.0,67513.0,0.3608]
[1729520563593,0.074073,67524.0,67523.0,0.3608]
[1729520565001,0.00222275,67528.0,67523.0,0.3608]
[1729520565211,0.07629175,67528.0,67527.0,0.07407]
[1729520565998,0.00222275,67528.0,67527.0,0.07407]
[1729520566502,0.07729175,67528.0,67527.0,0.07507]
[1729520566693,0.07729175,67528.0,67527.0,0.001]
[1729520567993,0.08929175,67528.0,67527.0,0.002]
[1729520568394,0.53357175,67528.0,67523.0,0.3608]
[1729520568596,0.074073,67524.0,67523.0,0.3608]
[1729520569606,0.074073,67524.0,67523.0,0.3628]
[1729520570110,0.074073,67524.0,67523.0,0.002]
[1729520571203,0.074073,67524.0,67523.0,0.009]
[1729520571599,0.074073,67524.0,67523.0,0.015]
[1729520571600,0.001,67524.0,67523.0,0.015]
[1729520571805,0.001,67524.0,67523.0,0.090074]
[1729520572397,0.00222275,67528.0,67527.0,0.07407]
[1729520572594,0.00222275,67528.0,67524.0,0.3608]
[1729520572799,0.074072,67525.0,67524.0,0.434873]
[1729520573404,0.075073,67524.0,67523.0,0.028]
[1729520574406,0.075073,67524.0,67523.0,0.014]
[1729520574809,0.00222275,67528.0,67521.0,0.074076]
[1729520574810,0.074076,67522.0,67521.0,0.074076]
[1729520576513,0.075076,67522.0,67521.0,0.088076]
[1729520577399,0.075076,67522.0,67521.0,0.014]
[1729520578003,0.001,67522.0,67521.0,0.028]
[1729520578216,0.001,67522.0,67521.0,0.102076]
[1729520578512,0.001,67522.0,67521.0,0.088076]
[1729520578700,0.00222275,67528.0,67521.0,0.014]
[1729520578900,0.00222275,67528.0,67527.0,0.07407]
[1729520580609,0.00222275,67528.0,67527.0,0.2947483]
[1729520580807,0.00222275,67528.0,67527.0,0.2206783]
[1729520581010,0.074071,67526.0,67525.0,0.3608]
[1729520581913,0.074071,67526.0,67512.0,0.1605]
[1729520582216,0.001,67528.0,67512.0,0.02371951]
[1729520582217,0.07408,67518.0,67512.0,0.02371951]
[1729520582421,0.07408,67518.0,67515.0,0.074083]
[1729520582611,0.07408,67518.0,67517.0,0.434881]
[1729520582916,0.07408,67518.0,67517.0,0.3608]
[1729520584018,0.074076,67522.0,67509.0,0.3608]
[1729520584220,0.074089,67510.0,67509.0,0.3608]
[1729520585016,0.074089,67510.0,67509.0,0.38352049]
[1729520585321,0.074089,67510.0,67503.0,0.1636]
[1729520585322,0.074095,67504.0,67503.0,0.074096]
[1729520585822,0.074095,67504.0,67503.0,0.22133975]
[1729520586003,0.074095,67504.0,67495.0,0.04431848]
[1729520586004,0.074102,67498.0,67492.0,0.04431848]
[1729520586204,0.074102,67498.0,67480.0,0.3608]
[1729520586205,0.3608,67497.0,67482.0,0.04431848]
[1729520586417,0.3608,67497.0,67481.0,0.00222321]
[1729520586418,0.074119,67482.0,67481.0,0.00222321]
[1729520588124,0.076119,67482.0,67481.0,0.00222321]
[1729520588316,0.082119,67482.0,67481.0,0.00322321]
[1729520588711,0.080119,67482.0,67481.0,0.00322321]
[1729520589009,0.080119,67482.0,67481.0,0.01722321]
[1729520589209,0.075119,67482.0,67481.0,0.03022321]
[1729520589418,0.075119,67482.0,67481.0,0.10434321]
[1729520589814,0.075119,67482.0,67481.0,0.03022321]
[1729520590412,0.075119,67482.0,67481.0,0.01622321]
[1729520590624,0.074119,67482.0,67481.0,0.01622321]
[1729520590928,0.519679,67482.0,67481.0,0.02822321]
[1729520591627,0.519679,67482.0,67481.0,0.03022321]
[1729520591918,0.44556,67482.0,67467.0,0.1417045]
[1729520592118,0.3608,67479.0,67466.0,0.3608]
[1729520592315,0.074141,67465.0,67464.0,0.074138]
[1729520592514,0.03704134,67465.0,67464.0,0.074138]
[1729520593720,0.3608,67473.0,67459.0,0.3608]
[1729520593924,0.43493,67473.0,67467.0,0.014]
[1729520594124,0.074135,67468.0,67467.0,0.014]
[1729520594621,0.074136,67467.0,67466.0,0.002]
[1729520594818,0.074138,67465.0,67464.0,0.014]
[1729520595018,0.0983694,67473.0,67463.0,0.07414]
[1729520595223,0.074139,67464.0,67463.0,0.07414]
[1729520596621,0.074143,67461.0,67459.0,0.45855062]
[1729520596828,0.002,67467.0,67466.0,0.014]
[1729520597017,0.076136,67467.0,67466.0,0.014]
[1729520597320,0.074139,67464.0,67463.0,0.002]
[1729520597523,0.074139,67464.0,67463.0,0.016]
[1729520597524,0.075139,67464.0,67463.0,0.016]
[1729520598023,0.074149,67455.0,67454.0,0.3608]
[1729520598226,0.074141,67462.0,67452.0,0.07637554]
[1729520598414,0.074151,67453.0,67452.0,0.09906858]
[1729520598909,0.074151,67453.0,67452.0,0.00222354]
[1729520600234,0.0222008,67453.0,67452.0,0.00222354]
[1729520600414,0.0222008,67453.0,67448.0,0.3608]
[1729520600415,0.074156,67449.0,67448.0,0.3608]
[1729520600616,0.074164,67442.0,67432.0,0.3608]
[1729520600815,0.3608,67452.0,67440.0,0.38449314]
[1729520601015,0.3608,67452.0,67441.0,0.074164]
[1729520601016,0.074164,67442.0,67441.0,0.074164]
[1729520601216,0.074164,67441.0,67440.0,0.3608]
[1729520601614,0.074164,67441.0,67440.0,0.434965]
[1729520602019,0.3608,67452.0,67440.0,0.3608]
[1729520602223,0.074161,67444.0,67443.0,0.074161]
[1729520602525,0.3608,67452.0,67440.0,0.3628]
[1729520602725,0.3608,67452.0,67443.0,0.074161]
[1729520602922,0.074161,67444.0,67443.0,0.074161]
[1729520603520,0.074161,67444.0,67440.0,0.3628]
[1729520603521,0.074157,67448.0,67440.0,0.3628]
[1729520603721,0.001,67449.0,67440.0,0.3628]
[1729520603924,0.074161,67444.0,67443.0,0.074162]
[1729520604126,0.074161,67444.0,67443.0,0.075162]
[1729520604625,0.074161,67444.0,67443.0,0.074162]
[1729520604829,0.074161,67444.0,67440.0,0.3608]
[1729520604830,0.074164,67441.0,67440.0,0.450965]
[1729520605129,0.001,67448.0,67443.0,0.074162]
[1729520605130,0.074161,67444.0,67443.0,0.074162]
[1729520606127,0.074161,67445.0,67443.0,0.074162]
[1729520606327,0.001,67449.0,67443.0,0.014]
[1729520606518,0.075161,67444.0,67443.0,0.014]
[1729520607015,0.076161,67444.0,67443.0,0.090162]
[1729520607416,0.002,67444.0,67443.0,0.090162]
[1729520607629,0.001,67444.0,67443.0,0.68468542]
[1729520607928,0.3608,67458.0,67457.0,0.074147]
[1729520608432,0.38392148,67464.0,67453.0,0.3608]
[1729520608626,0.07414,67463.0,67458.0,0.074145]
[1729520608934,0.074149,67456.0,67455.0,0.074149]
[1729520609134,0.074144,67460.0,67454.0,0.07415]
[1729520609427,0.3608,67464.0,67453.0,0.3608]
[1729520609627,0.074144,67460.0,67458.0,0.074145]
[1729520609922,0.3608,67464.0,67458.0,0.074145]
[1729520610121,0.3608,67464.0,67457.0,0.001]
[1729520610122,0.074146,67458.0,67457.0,0.001]
[1729520610323,0.3608,67464.0,67455.0,0.074148]
[1729520610324,0.074147,67457.0,67455.0,0.074148]
[1729520610522,0.074147,67457.0,67453.0,0.38438442]
[1729520610523,0.074149,67455.0,67454.0,0.014]
[1729520610928,0.07415,67454.0,67453.0,0.10073542]
[1729520611123,0.07415,67454.0,67446.0,0.3608]
[1729520611323,0.074158,67447.0,67446.0,0.3608]
[1729520611725,0.074155,67450.0,67446.0,0.3608]
[1729520613365,0.001,67450.0,67446.0,0.3748]
[1729520613519,0.001,67450.0,67449.0,0.074156]
[1729520614130,0.002,67450.0,67449.0,0.074156]
[1729520614320,0.001,67450.0,67449.0,0.11847448]
[1729520614820,0.001,67450.0,67449.0,0.13247448]
[1729520614821,0.002,67450.0,67449.0,0.13247448]
[1729520615329,0.076154,67450.0,67449.0,0.017]
[1729520615629,0.3283,67469.0,67449.0,1.04540155]
[1729520615828,0.074145,67459.0,67458.0,0.40505846]
[1729520616132,0.1615,67461.0,67457.0,0.04425959]
[1729520617228,0.074146,67458.0,67457.0,0.04425959]
[1729520617424,0.1615,67461.0,67457.0,0.013]
[1729520617425,0.1625,67461.0,67457.0,0.013]
[1729520617628,0.1625,67461.0,67458.0,0.04429407]
[1729520617835,0.074145,67459.0,67458.0,0.11844007]
[1729520618132,0.074145,67459.0,67458.0,0.074146]
[1729520619234,0.1635,67461.0,67457.0,0.016]
[1729520619235,0.237642,67461.0,67460.0,0.074143]
[1729520619735,0.1615,67461.0,67460.0,0.074143]
[1729520619937,0.074139,67464.0,67463.0,0.07414]
[1729520620135,0.00541226,68241.0,67463.0,0.07414]
[1729520620136,0.074136,67467.0,67463.0,0.04432311]
[1729520620333,0.0022242,67470.0,67465.0,0.04432311]
[1729520620543,0.0022242,67470.0,67467.0,0.05901136]
[1729520620930,0.074134,67469.0,67467.0,0.05901136]
[1729520621237,0.074136,67467.0,67466.0,0.074136]
[1729520621546,0.004,67467.0,67466.0,0.074136]
[1729520621931,0.078136,67467.0,67466.0,0.074136]
[1729520623034,0.074136,67467.0,67466.0,0.074136]
[1729520623331,0.075136,67467.0,67466.0,0.086136]
[1729520623539,0.075136,67467.0,67466.0,0.078136]
[1729520623741,0.074136,67467.0,67466.0,0.066136]
[1729520623924,0.075136,67467.0,67466.0,0.12847949]
[1729520624124,0.076136,67467.0,67466.0,0.084136]
[1729520624534,0.002,67467.0,67466.0,0.12847949]
[1729520624941,0.076136,67467.0,67466.0,0.084136]
[1729520625329,0.075136,67467.0,67466.0,0.070136]
[1729520625625,0.076136,67467.0,67466.0,0.084136]
[1729520625940,0.075136,67467.0,67466.0,0.070136]
[1729520626126,0.076136,67467.0,67466.0,0.084136]
[1729520626329,0.076136,67467.0,67466.0,0.018]
[1729520626529,0.076136,67467.0,67458.0,0.3608]
[1729520626530,0.518816,67467.0,67458.0,0.3608]
[1729520626728,0.074144,67461.0,67460.0,0.074143]
[1729520627031,0.076136,67467.0,67458.0,0.3608]
[1729520627338,0.074145,67459.0,67458.0,0.434946]
[1729520629326,0.074145,67459.0,67458.0,0.438946]
[1729520629538,0.075145,67459.0,67458.0,0.452946]
[1729520630135,0.075145,67459.0,67458.0,0.448946]
[1729520630334,0.076145,67459.0,67458.0,0.452946]
[1729520632054,0.076145,67459.0,67458.0,0.49729721]
[1729520632448,0.076145,67459.0,67458.0,0.452946]
[1729520633250,0.076145,67459.0,67458.0,0.3788]
[1729520633563,0.076145,67459.0,67458.0,0.018]
[1729520634542,0.09882805,67459.0,67458.0,0.018]
[1729520634937,0.09882805,67459.0,67458.0,0.06237182]
[1729520635338,0.09882805,67459.0,67458.0,0.0623965]
[1729520635544,0.09882805,67459.0,67458.0,0.018]
[1729520635750,0.09882805,67459.0,67458.0,0.06239625]
[1729520636255,0.09882805,67459.0,67458.0,0.018]
[1729520637059,0.076145,67459.0,67458.0,0.018]
[1729520638949,0.228445,67459.0,67458.0,0.016]
[1729520640843,0.074154,67450.0,67449.0,0.04442394]
[1729520641165,0.074172,67434.0,67433.0,0.074171]
[1729520641654,0.07417,67438.0,67437.0,0.074167]
[1729520642044,0.16362466,67448.0,67437.0,0.22337886]
[1729520642247,0.074158,67447.0,67446.0,0.074158]
[1729520642452,0.00222466,67448.0,67447.0,0.074158]
[1729520642959,0.001,67450.0,67449.0,0.074156]
[1729520643254,0.001,67450.0,67449.0,0.29591104]
[1729520643458,0.074148,67456.0,67455.0,0.074149]
[1729520644059,0.074148,67456.0,67453.0,0.3608]
[1729520644060,0.074145,67459.0,67458.0,0.074146]
[1729520645352,0.3608,67465.0,67461.0,0.074139]
[1729520645560,0.074142,67462.0,67461.0,0.074141]
[1729520646151,0.434938,67465.0,67464.0,0.074139]
[1729520646658,0.075138,67465.0,67464.0,0.074139]
[1729520647153,0.074138,67465.0,67464.0,0.074139]
[1729520648947,0.075138,67465.0,67464.0,0.077139]
[1729520649147,0.076138,67465.0,67464.0,0.004]
[1729520649457,0.075138,67465.0,67464.0,0.001]
[1729520649760,0.076138,67465.0,67464.0,0.004]
[1729520651352,0.07415,67454.0,67445.0,0.3608]
[1729520651556,0.074145,67459.0,67450.0,0.07637607]
[1729520651557,0.074153,67451.0,67450.0,0.07637607]
[1729520652466,0.074153,67451.0,67450.0,0.00522407]
[1729520652859,0.074153,67451.0,67450.0,0.00622407]
[1729520652860,0.075153,67451.0,67450.0,0.00622407]
[1729520653061,0.075153,67451.0,67450.0,0.00322407]
[1729520653254,0.076153,67451.0,67450.0,0.00622407]
[1729520654762,0.076153,67451.0,67450.0,0.00522407]
[1729520656166,0.076153,67451.0,67442.0,0.3608]
[1729520656167,0.074171,67436.0,67435.0,0.074169]
[1729520656375,0.074155,67450.0,67433.0,0.3608]
[1729520656376,0.074172,67434.0,67433.0,0.3608]
[1729520656662,0.074186,67422.0,67421.0,0.074186]
[1729520656855,0.074172,67434.0,67420.0,0.0022252]
[1729520657056,0.074172,67434.0,67424.0,0.074182]
[1729520657252,0.074183,67425.0,67424.0,0.074183]
[1729520658064,0.074177,67431.0,67430.0,0.074176]
[1729520658768,0.074177,67431.0,67429.0,0.3608]
[1729520658769,0.3618,67436.0,67434.0,0.074172]
[1729520659071,0.074171,67436.0,67430.0,0.074176]
[1729520659252,0.074171,67436.0,67429.0,0.3608]
[1729520659253,0.074171,67436.0,67435.0,0.074171]
[1729520659653,0.074167,67439.0,67438.0,0.074167]
[1729520661663,0.075167,67439.0,67438.0,0.074167]
[1729520661963,0.076167,67439.0,67438.0,0.074167]
[1729520665369,0.07640471,67439.0,67438.0,0.074167]
[1729520669563,0.07640471,67439.0,67438.0,0.066167]
[1729520670667,0.074172,67435.0,67434.0,0.074172]
[1729520670881,0.074172,67435.0,67429.0,0.36244]
[1729520670882,0.074176,67431.0,67430.0,0.074175]
[1729520671073,0.3608,67433.0,67421.0,0.36232]
[1729520671372,0.074185,67424.0,67423.0,0.074184]
[1729520672471,0.3608,67433.0,67428.0,0.074177]
[1729520672472,0.074178,67429.0,67428.0,0.074177]
[1729520673773,0.074174,67432.0,67428.0,0.074179]
[1729520673981,0.3608,67433.0,67421.0,0.38399872]
[1729520673982,0.074181,67427.0,67421.0,0.38399872]
[1729520674194,0.074181,67427.0,67426.0,0.074181]
[1729520674599,0.002,67429.0,67422.0,0.22284417]
[1729520674912,0.074182,67425.0,67424.0,0.074182]
[1729520675098,0.074178,67429.0,67428.0,0.074179]
[1729520675786,0.075178,67429.0,67428.0,0.074179]
[1729520675989,0.001,67429.0,67428.0,0.074179]
[1729520676189,0.001,67429.0,67428.0,0.434979]
[1729520676587,0.002,67429.0,67428.0,0.434979]
[1729520677196,0.001,67429.0,67428.0,0.434979]
[1729520677391,0.002,67429.0,67428.0,0.434979]
[1729520679901,0.002,67429.0,67428.0,0.45806634]
[1729520684982,0.002,67429.0,67428.0,0.45006634]
[1729520693790,0.3608,67463.0,67438.0,0.074168]
[1729520693984,0.473,67459.0,67449.0,0.074156]
[1729520694187,0.3608,67457.0,67446.0,0.074159]
[1729520694495,0.074158,67447.0,67446.0,0.074159]
[1729520694803,0.074154,67451.0,67449.0,0.074156]
[1729520695383,0.02302073,67458.0,67449.0,0.074156]
[1729520695683,0.074152,67453.0,67449.0,0.074156]
[1729520695993,0.00322443,67450.0,67449.0,0.074156]
[1729520696192,0.00422443,67450.0,67449.0,0.074156]
[1729520696701,0.00322443,67450.0,67449.0,0.075156]
[1729520696884,0.00422443,67450.0,67449.0,0.075156]
[1729520700205,0.07837843,67450.0,67449.0,0.075156]
[1729520700391,0.07837843,67450.0,67449.0,0.067156]
[1729520701096,0.07837843,67450.0,67449.0,0.001]
[1729520701987,0.43917843,67450.0,67449.0,0.001]
[1729520702298,0.074164,67441.0,67440.0,0.074165]
[1729520703602,0.075164,67441.0,67440.0,0.075165]
[1729520703796,0.076164,67441.0,67440.0,0.075165]
[1729520704093,0.002,67441.0,67440.0,0.075165]
[1729520704701,0.002,67441.0,67440.0,0.29803111]
[1729520704898,0.002,67441.0,67440.0,0.74287111]
[1729520705301,0.00222443,67450.0,67449.0,0.074156]
[1729520705493,1e-08,67450.0,67449.0,0.074156]
[1729520705694,1e-08,67450.0,67449.0,0.29549988]
[1729520705890,0.1503,67467.0,67449.0,0.67074177]
[1729520706095,0.36134965,67480.0,67467.0,0.074135]
[1729520706096,0.074135,67468.0,67467.0,0.074135]
[1729520706504,0.074135,67468.0,67461.0,0.3608]
[1729520706505,0.3265,67471.0,67461.0,0.3608]
[1729520706696,0.074133,67470.0,67468.0,0.074134]
[1729520707008,0.3265,67471.0,67468.0,0.074134]
[1729520707009,0.074134,67469.0,67468.0,0.074134]
[1729520707201,0.074136,67467.0,67465.0,0.074138]
[1729520707505,0.3265,67471.0,67468.0,0.074134]
[1729520707506,0.400632,67471.0,67468.0,0.074134]
[1729520707804,0.400632,67471.0,67466.0,0.074137]
[1729520707805,0.074137,67467.0,67466.0,0.074137]
[1729520708601,0.001,67468.0,67461.0,0.38410009]
[1729520708903,0.074133,67470.0,67461.0,0.3608]
[1729520709106,0.074146,67458.0,67457.0,0.3608]
[1729520709495,0.074138,67465.0,67464.0,0.074137]
[1729520710398,0.074138,67465.0,67464.0,0.434937]
[1729520710611,0.001,67468.0,67467.0,0.074136]
[1729520711292,0.001,67468.0,67467.0,0.29744671]
[1729520711896,0.2951,67479.0,67467.0,0.29744671]
[1729520712209,0.074128,67475.0,67474.0,0.074127]
[1729520712703,0.434928,67475.0,67474.0,0.074127]
[1729520712911,0.434928,67475.0,67467.0,0.027]
[1729520712912,0.39711304,67475.0,67467.0,0.027]
[1729520713096,0.074135,67468.0,67467.0,0.027]
[1729520713505,0.074135,67468.0,67467.0,0.013]
[1729520715097,0.07414,67463.0,67462.0,0.074141]
[1729520716106,0.07415,67454.0,67448.0,0.36232]
[1729520716310,0.43495,67454.0,67448.0,0.3608]
[1729520716503,0.07415,67454.0,67453.0,0.07637479]
[1729520717196,0.07415,67454.0,67453.0,0.00222379]
[1729520717595,0.07415,67454.0,67453.0,0.07637479]
[1729520717812,0.3608,67461.0,67453.0,0.07637479]
[1729520717813,0.074148,67457.0,67456.0,0.074147]
[1729520718303,0.074143,67460.0,67459.0,0.074142]
[1729520718707,0.2917,67462.0,67456.0,0.3608]
[1729520719011,0.2917,67462.0,67461.0,0.074142]
[1729520719196,0.3608,67485.0,67471.0,0.074129]
[1729520719401,0.074124,67479.0,67478.0,0.074123]
[1729520720205,0.3608,67485.0,67476.0,0.3608]
[1729520720206,0.02425262,67480.0,67479.0,0.074123]
[1729520721103,0.09837362,67480.0,67479.0,0.074123]
[1729520722214,0.09837362,67480.0,67479.0,0.076123]
[1729520722423,0.09837362,67480.0,67479.0,0.002]
[1729520722601,0.09837362,67480.0,67479.0,0.078123]
[1729520724112,0.09837362,67480.0,67479.0,0.004]
[1729520724305,0.074123,67479.0,67462.0,0.02369599]
[1729520724505,0.074138,67466.0,67465.0,0.074136]
[1729520725800,0.074138,67466.0,67465.0,0.088136]
[1729520726210,0.074133,67470.0,67469.0,0.074133]
[1729520726700,0.3608,67478.0,67465.0,0.027]
[1729520727012,0.074137,67466.0,67465.0,0.027]
[1729520727414,0.074137,67466.0,67459.0,0.02285326]
[1729520727415,0.80548,67466.0,67448.0,0.36236]
[1729520727616,0.07415,67454.0,67448.0,0.3608]
[1729520728708,0.074156,67449.0,67448.0,0.3608]
[1729520728906,0.231152,67453.0,67452.0,0.074152]
[1729520729107,0.074156,67449.0,67448.0,0.434955]
[1729520729408,0.231153,67453.0,67452.0,0.074152]